[Event "Early-Titled-Tuesday-Blitz-March-12-2024"]
[Site "Chess.com"]
[Date "2024.03.12"]
[Round "5"]
[White "JosephRyan"]
[Black "Zheenbekov86"]
[Result "0-1"]
[WhiteElo "2192"]
[BlackElo "2436"]
[TimeControl "180+1"]
[EndTime "8:53:55 PDT"]
[Termination "Zheenbekov86 won by resignation"]

1. e4 {[%clk 0:02:57.2]} 1... d6 {[%clk 0:02:59.7]} 2. d4 {[%clk 0:02:56]} 2...
g6 {[%clk 0:02:59.2]} 3. Nf3 {[%clk 0:02:55.6]} 3... Bg7 {[%clk 0:02:59.3]} 4.
c3 {[%clk 0:02:54.9]} 4... Nf6 {[%clk 0:02:58]} 5. Bd3 {[%clk 0:02:54.3]} 5...
O-O {[%clk 0:02:57.5]} 6. O-O {[%clk 0:02:54.2]} 6... Nbd7 {[%clk 0:02:57.6]} 7.
Bg5 {[%clk 0:02:44.3]} 7... e5 {[%clk 0:02:56.6]} 8. Nbd2 {[%clk 0:02:35.3]}
8... h6 {[%clk 0:02:56.5]} 9. Bh4 {[%clk 0:02:34.9]} 9... Qe8 {[%clk 0:02:56.5]}
10. Re1 {[%clk 0:02:33.2]} 10... Nh5 {[%clk 0:02:53.9]} 11. Qc2 {[%clk
0:02:30.1]} 11... Nf4 {[%clk 0:02:51.9]} 12. Bf1 {[%clk 0:02:27.6]} 12... g5
{[%clk 0:02:44.5]} 13. Bg3 {[%clk 0:02:27.1]} 13... Nf6 {[%clk 0:02:44.3]} 14.
Nc4 {[%clk 0:02:19.7]} 14... Bg4 {[%clk 0:02:19.5]} 15. Nfd2 {[%clk 0:02:16.5]}
15... N6h5 {[%clk 0:02:17.7]} 16. f3 {[%clk 0:02:15.5]} 16... exd4 {[%clk
0:02:15.9]} 17. fxg4 {[%clk 0:02:11.6]} 17... Nxg3 {[%clk 0:02:15]} 18. hxg3
{[%clk 0:02:11.5]} 18... Ne6 {[%clk 0:02:10]} 19. Nf3 {[%clk 0:02:04.4]} 19...
dxc3 {[%clk 0:02:09.6]} 20. bxc3 {[%clk 0:02:03.8]} 20... Qc6 {[%clk 0:02:05.4]}
21. Rad1 {[%clk 0:02:02.3]} 21... a6 {[%clk 0:02:00.3]} 22. Nd4 {[%clk
0:02:01.9]} 22... Qc5 {[%clk 0:01:55.4]} 23. Kh2 {[%clk 0:01:54.7]} 23... b5
{[%clk 0:01:52.7]} 24. Ne3 {[%clk 0:01:46]} 24... Nxd4 {[%clk 0:01:39.6]} 25.
cxd4 {[%clk 0:01:45.7]} 25... Bxd4 {[%clk 0:01:39.8]} 26. Qxc5 {[%clk
0:01:40.4]} 26... Bxc5 {[%clk 0:01:37.3]} 27. Nf5 {[%clk 0:01:40.1]} 27... Kh7
{[%clk 0:01:36.1]} 28. e5 {[%clk 0:01:31.2]} 28... Rae8 {[%clk 0:01:17.7]} 29.
exd6 {[%clk 0:01:26.6]} 29... cxd6 {[%clk 0:01:17.2]} 30. Bd3 {[%clk 0:01:24.9]}
30... Kg8 {[%clk 0:01:04.5]} 31. Nxh6+ {[%clk 0:01:23.7]} 31... Kg7 {[%clk
0:01:04.8]} 32. Nf5+ {[%clk 0:01:23.1]} 32... Kf6 {[%clk 0:01:04.7]} 33. Be4
{[%clk 0:01:17.5]} 33... Rh8+ {[%clk 0:00:59.7]} 34. Nh4 {[%clk 0:01:17.2]}
34... gxh4 {[%clk 0:00:58.8]} 35. gxh4 {[%clk 0:01:17.6]} 35... Bf2 {[%clk
0:00:58]} 36. g5+ {[%clk 0:01:12.4]} 36... Kg7 {[%clk 0:00:56.2]} 37. g3 {[%clk
0:00:59.6]} 37... Bxe1 {[%clk 0:00:55.5]} 38. Rxe1 {[%clk 0:01:00.5]} 38... d5
{[%clk 0:00:55.7]} 0-1

[Event "Early-Titled-Tuesday-Blitz-March-12-2024"]
[Site "Chess.com"]
[Date "2024.03.12"]
[Round "5"]
[White "Let_it_be_1"]
[Black "alexrustemov"]
[Result "0-1"]
[WhiteElo "2620"]
[BlackElo "2864"]
[TimeControl "180+1"]
[EndTime "8:54:05 PDT"]
[Termination "alexrustemov won by resignation"]

1. e4 {[%clk 0:03:00.9]} 1... e6 {[%clk 0:02:58.1]} 2. d4 {[%clk 0:03:00.6]}
2... d5 {[%clk 0:02:58.6]} 3. Nd2 {[%clk 0:03:00.8]} 3... dxe4 {[%clk
0:02:59.1]} 4. Nxe4 {[%clk 0:03:00.9]} 4... Bd7 {[%clk 0:02:59.7]} 5. Nf3 {[%clk
0:03:01.2]} 5... Bc6 {[%clk 0:03:00]} 6. Ned2 {[%clk 0:03:01.8]} 6... Nd7 {[%clk
0:03:00.3]} 7. Nc4 {[%clk 0:03:01.8]} 7... Ngf6 {[%clk 0:02:59.5]} 8. Nfe5
{[%clk 0:03:01.9]} 8... Bd5 {[%clk 0:02:55.8]} 9. Nxd7 {[%clk 0:02:59.6]} 9...
Nxd7 {[%clk 0:02:51.7]} 10. Ne3 {[%clk 0:02:45.2]} 10... Bc6 {[%clk 0:02:47.3]}
11. Bd3 {[%clk 0:02:36.8]} 11... Nf6 {[%clk 0:02:42.3]} 12. c3 {[%clk
0:02:36.3]} 12... Be7 {[%clk 0:02:40.3]} 13. O-O {[%clk 0:02:35.9]} 13... O-O
{[%clk 0:02:40.8]} 14. Ng4 {[%clk 0:02:35.1]} 14... Qd5 {[%clk 0:02:36.3]} 15.
Nxf6+ {[%clk 0:02:31.9]} 15... Bxf6 {[%clk 0:02:36.2]} 16. f3 {[%clk 0:02:28.2]}
16... e5 {[%clk 0:02:33.1]} 17. Be4 {[%clk 0:02:19.8]} 17... Qd6 {[%clk
0:02:21.4]} 18. Bxc6 {[%clk 0:02:05.2]} 18... Qxc6 {[%clk 0:02:19.9]} 19. dxe5
{[%clk 0:02:05]} 19... Bxe5 {[%clk 0:02:18.9]} 20. Be3 {[%clk 0:02:03.2]} 20...
Rad8 {[%clk 0:02:15.1]} 21. Qc2 {[%clk 0:01:56]} 21... Rd7 {[%clk 0:02:05.1]}
22. Rad1 {[%clk 0:01:46.6]} 22... Rfd8 {[%clk 0:02:04.7]} 23. Rxd7 {[%clk
0:01:43.3]} 23... Qxd7 {[%clk 0:02:00.9]} 24. Qe4 {[%clk 0:01:39.5]} 24... Qd5
{[%clk 0:01:52.6]} 25. Qxd5 {[%clk 0:01:33.6]} 25... Rxd5 {[%clk 0:01:53.2]} 26.
f4 {[%clk 0:01:23.6]} 26... Bd6 {[%clk 0:01:49.6]} 27. Kf2 {[%clk 0:01:20.5]}
27... f5 {[%clk 0:01:43.6]} 28. c4 {[%clk 0:01:00.3]} 28... Ra5 {[%clk
0:01:39.9]} 29. a3 {[%clk 0:01:00.3]} 29... Kf7 {[%clk 0:01:33.6]} 30. Re1
{[%clk 0:00:56.6]} 30... Ra4 {[%clk 0:01:27]} 31. Rc1 {[%clk 0:00:51.8]} 31...
a6 {[%clk 0:01:23.5]} 32. Ke2 {[%clk 0:00:50]} 32... b5 {[%clk 0:01:23]} 33. Kd3
{[%clk 0:00:48.7]} 33... Ke6 {[%clk 0:01:22.1]} 34. cxb5 {[%clk 0:00:43.4]}
34... axb5 {[%clk 0:01:21.9]} 35. g3 {[%clk 0:00:41.2]} 35... Kd5 {[%clk
0:01:21]} 36. Rc3 {[%clk 0:00:24.9]} 36... c5 {[%clk 0:01:19.1]} 37. Rb3 {[%clk
0:00:20.5]} 37... c4+ {[%clk 0:01:18.3]} 0-1

[Event "Early-Titled-Tuesday-Blitz-March-12-2024"]
[Site "Chess.com"]
[Date "2024.03.12"]
[Round "5"]
[White "AttilaTurzo"]
[Black "Switzerlamb"]
[Result "1/2-1/2"]
[WhiteElo "2474"]
[BlackElo "2555"]
[TimeControl "180+1"]
[EndTime "8:54:08 PDT"]
[Termination "Game drawn by repetition"]

1. d4 {[%clk 0:02:54]} 1... c5 {[%clk 0:02:59.4]} 2. d5 {[%clk 0:02:54]} 2... g6
{[%clk 0:02:59.3]} 3. Nc3 {[%clk 0:02:51.8]} 3... Bg7 {[%clk 0:02:59.6]} 4. e4
{[%clk 0:02:52.6]} 4... d6 {[%clk 0:02:59.7]} 5. Nf3 {[%clk 0:02:48.3]} 5... a6
{[%clk 0:02:59.8]} 6. a4 {[%clk 0:02:48]} 6... Bg4 {[%clk 0:03:00]} 7. Bc4
{[%clk 0:02:46.8]} 7... Nd7 {[%clk 0:02:59.2]} 8. h3 {[%clk 0:02:42.4]} 8...
Bxf3 {[%clk 0:02:58.6]} 9. Qxf3 {[%clk 0:02:43.3]} 9... Ne5 {[%clk 0:02:53.5]}
10. Qe2 {[%clk 0:02:42.4]} 10... Nxc4 {[%clk 0:02:53.2]} 11. Qxc4 {[%clk
0:02:43.3]} 11... Nf6 {[%clk 0:02:52.9]} 12. O-O {[%clk 0:02:43]} 12... O-O
{[%clk 0:02:53.5]} 13. Re1 {[%clk 0:02:43.2]} 13... b5 {[%clk 0:02:53.5]} 14.
Qe2 {[%clk 0:02:36.9]} 14... b4 {[%clk 0:02:51.3]} 15. Nb1 {[%clk 0:02:33.2]}
15... Nd7 {[%clk 0:02:50.6]} 16. Nd2 {[%clk 0:02:32.9]} 16... a5 {[%clk
0:02:42.8]} 17. Nc4 {[%clk 0:02:30.3]} 17... Nb6 {[%clk 0:02:42.6]} 18. Nxb6
{[%clk 0:02:02.3]} 18... Qxb6 {[%clk 0:02:43.5]} 19. Rb1 {[%clk 0:02:02.8]}
19... Qa6 {[%clk 0:02:41.9]} 20. Bd2 {[%clk 0:01:49.6]} 20... Qxe2 {[%clk
0:02:39.7]} 21. Rxe2 {[%clk 0:01:50.5]} 21... c4 {[%clk 0:02:37.8]} 22. Be3
{[%clk 0:01:38.4]} 22... Rab8 {[%clk 0:02:27.8]} 23. Ree1 {[%clk 0:01:38]} 23...
Rfc8 {[%clk 0:02:26.3]} 24. Red1 {[%clk 0:01:38.2]} 24... Kf8 {[%clk 0:02:25.6]}
25. Bd4 {[%clk 0:01:38.1]} 25... Bxd4 {[%clk 0:02:23.7]} 26. Rxd4 {[%clk
0:01:38]} 26... Rc5 {[%clk 0:02:18.5]} 27. f4 {[%clk 0:01:36.3]} 27... Rd8
{[%clk 0:02:14]} 28. Rbd1 {[%clk 0:01:35.4]} 28... f6 {[%clk 0:02:12.8]} 29. Kf2
{[%clk 0:01:33.5]} 29... h6 {[%clk 0:02:12.2]} 30. g4 {[%clk 0:01:33.6]} 30...
g5 {[%clk 0:02:12.2]} 31. Kf3 {[%clk 0:01:23.7]} 31... Kg7 {[%clk 0:02:08.5]}
32. h4 {[%clk 0:01:16.3]} 32... gxf4 {[%clk 0:02:00.9]} 33. Kxf4 {[%clk
0:01:14.5]} 33... Kg6 {[%clk 0:02:00.6]} 34. Rg1 {[%clk 0:01:10.4]} 34... Rf8
{[%clk 0:01:57.4]} 35. Rg3 {[%clk 0:01:01.5]} 35... Rcc8 {[%clk 0:01:53]} 36.
Rd1 {[%clk 0:00:49.7]} 36... Rh8 {[%clk 0:01:49.7]} 37. Rdg1 {[%clk 0:00:48.7]}
37... Rcf8 {[%clk 0:01:48.4]} 38. Ke3 {[%clk 0:00:46]} 38... Rc8 {[%clk
0:01:48.3]} 39. Kd4 {[%clk 0:00:43.6]} 39... Rhf8 {[%clk 0:01:44.6]} 40. Rf1
{[%clk 0:00:41]} 40... Rg8 {[%clk 0:01:40.8]} 41. Rf5 {[%clk 0:00:40.2]} 41...
Rh8 {[%clk 0:01:39.4]} 42. Rh5 {[%clk 0:00:31.1]} 42... Rhg8 {[%clk 0:01:37.4]}
43. Rf5 {[%clk 0:00:29.8]} 43... Rgf8 {[%clk 0:01:37.5]} 44. Rh5 {[%clk
0:00:29.4]} 44... Rh8 {[%clk 0:01:37.2]} 45. Rf5 {[%clk 0:00:29.2]} 45... Rhf8
{[%clk 0:01:37.5]} 46. Rh5 {[%clk 0:00:29.3]} 46... Rh8 {[%clk 0:01:37.8]} 47.
Rf5 {[%clk 0:00:29.6]} 47... Rhf8 {[%clk 0:01:38]} 1/2-1/2

[Event "Early-Titled-Tuesday-Blitz-March-12-2024"]
[Site "Chess.com"]
[Date "2024.03.12"]
[Round "5"]
[White "karinachess1"]
[Black "pirulillo"]
[Result "1-0"]
[WhiteElo "2605"]
[BlackElo "2287"]
[TimeControl "180+1"]
[EndTime "8:54:12 PDT"]
[Termination "karinachess1 won by resignation"]

1. d4 {[%clk 0:03:00.9]} 1... Nf6 {[%clk 0:02:59.4]} 2. c4 {[%clk 0:03:01.3]}
2... g6 {[%clk 0:02:58.5]} 3. Nc3 {[%clk 0:03:01.4]} 3... Bg7 {[%clk 0:02:59.2]}
4. e4 {[%clk 0:03:01.3]} 4... d6 {[%clk 0:02:59.8]} 5. h4 {[%clk 0:03:01.6]}
5... e5 {[%clk 0:02:57.2]} 6. d5 {[%clk 0:02:59.3]} 6... a5 {[%clk 0:02:56.5]}
7. Be2 {[%clk 0:02:59.7]} 7... h5 {[%clk 0:02:56.2]} 8. Bg5 {[%clk 0:02:58.6]}
8... Na6 {[%clk 0:02:53.6]} 9. Nf3 {[%clk 0:02:57.9]} 9... Nc5 {[%clk
0:02:51.8]} 10. O-O {[%clk 0:02:58.2]} 10... Bh6 {[%clk 0:02:48.5]} 11. Bxh6
{[%clk 0:02:53.1]} 11... Rxh6 {[%clk 0:02:48]} 12. Ng5 {[%clk 0:02:53.8]} 12...
Nh7 {[%clk 0:02:42]} 13. Qd2 {[%clk 0:02:49.7]} 13... Nxg5 {[%clk 0:02:41.4]}
14. hxg5 {[%clk 0:02:50.6]} 14... Rh8 {[%clk 0:02:40.4]} 15. f4 {[%clk
0:02:51.3]} 15... Qe7 {[%clk 0:02:37.6]} 16. f5 {[%clk 0:02:43.5]} 16... Bd7
{[%clk 0:02:21.3]} 17. f6 {[%clk 0:02:22.2]} 17... Qd8 {[%clk 0:02:18.3]} 18. b3
{[%clk 0:02:20.4]} 18... Kf8 {[%clk 0:02:11.8]} 19. Rab1 {[%clk 0:02:15.4]}
19... h4 {[%clk 0:02:07.3]} 20. Kf2 {[%clk 0:02:08.3]} 20... Qc8 {[%clk
0:02:03.2]} 21. Rh1 {[%clk 0:02:07.4]} 21... Bg4 {[%clk 0:02:03]} 22. Rh2 {[%clk
0:01:53.9]} 22... Rh5 {[%clk 0:02:01]} 23. Rbh1 {[%clk 0:01:48]} 23... h3 {[%clk
0:01:55.5]} 24. gxh3 {[%clk 0:01:45.3]} 24... Bxe2 {[%clk 0:01:53.1]} 25. Kxe2
{[%clk 0:01:43.6]} 25... Qd7 {[%clk 0:01:24]} 26. Qe3 {[%clk 0:01:43.6]} 26...
Kg8 {[%clk 0:01:18.3]} 27. Kd2 {[%clk 0:01:40]} 27... Kh7 {[%clk 0:01:14.3]} 28.
h4 {[%clk 0:01:33.7]} 28... Qg4 {[%clk 0:01:10.2]} 29. Rg1 {[%clk 0:01:27.7]}
29... Qd7 {[%clk 0:01:06.6]} 30. Ne2 {[%clk 0:01:23.7]} 30... a4 {[%clk
0:00:55.2]} 31. b4 {[%clk 0:01:23.7]} 31... Na6 {[%clk 0:00:48.9]} 32. a3 {[%clk
0:01:20.7]} 32... c5 {[%clk 0:00:48.7]} 33. b5 {[%clk 0:01:20.1]} 33... Nc7
{[%clk 0:00:48.6]} 34. Ng3 {[%clk 0:01:19.6]} 34... Qg4 {[%clk 0:00:42.8]} 35.
Nf5 {[%clk 0:01:05.6]} 35... gxf5 {[%clk 0:00:37.5]} 36. Rxg4 {[%clk 0:01:04.4]}
36... fxg4 {[%clk 0:00:37.4]} 37. Qg3 {[%clk 0:01:04.6]} 1-0

[Event "Early-Titled-Tuesday-Blitz-March-12-2024"]
[Site "Chess.com"]
[Date "2024.03.12"]
[Round "5"]
[White "Russian_berezka"]
[Black "bubeliang"]
[Result "0-1"]
[WhiteElo "2574"]
[BlackElo "2809"]
[TimeControl "180+1"]
[EndTime "8:54:15 PDT"]
[Termination "bubeliang won on time"]

1. d4 {[%clk 0:03:00.9]} 1... d5 {[%clk 0:02:57.8]} 2. c4 {[%clk 0:03:01]} 2...
e6 {[%clk 0:02:52.6]} 3. Nc3 {[%clk 0:03:01.4]} 3... Nf6 {[%clk 0:02:52.6]} 4.
cxd5 {[%clk 0:03:02.1]} 4... exd5 {[%clk 0:02:52]} 5. Bg5 {[%clk 0:03:02.7]}
5... Be7 {[%clk 0:02:47.9]} 6. e3 {[%clk 0:03:03.2]} 6... c6 {[%clk 0:02:48.1]}
7. Bd3 {[%clk 0:03:03.6]} 7... O-O {[%clk 0:02:48.3]} 8. Qc2 {[%clk 0:02:52.2]}
8... h6 {[%clk 0:02:47.8]} 9. Bh4 {[%clk 0:02:50]} 9... Re8 {[%clk 0:02:39]} 10.
Nge2 {[%clk 0:02:49.7]} 10... Nbd7 {[%clk 0:02:32.4]} 11. O-O {[%clk 0:02:42.9]}
11... Nh5 {[%clk 0:02:28.1]} 12. Bxe7 {[%clk 0:02:40.7]} 12... Qxe7 {[%clk
0:02:29]} 13. Rae1 {[%clk 0:02:36.8]} 13... Nf8 {[%clk 0:02:17.6]} 14. Nc1
{[%clk 0:02:36.1]} 14... Qg5 {[%clk 0:02:12.1]} 15. Kh1 {[%clk 0:02:32.9]} 15...
Bd7 {[%clk 0:02:02.5]} 16. Nb3 {[%clk 0:02:26.2]} 16... b6 {[%clk 0:01:59.8]}
17. Ne2 {[%clk 0:02:07.7]} 17... Rac8 {[%clk 0:01:54]} 18. e4 {[%clk 0:01:41.6]}
18... dxe4 {[%clk 0:01:48.6]} 19. Bxe4 {[%clk 0:01:42.5]} 19... Nf6 {[%clk
0:01:47.4]} 20. Bf3 {[%clk 0:01:22.5]} 20... Bg4 {[%clk 0:01:44.2]} 21. Bxg4
{[%clk 0:00:54.3]} 21... Nxg4 {[%clk 0:01:42.4]} 22. h3 {[%clk 0:00:50.9]} 22...
Qh4 {[%clk 0:01:32.7]} 23. Kg1 {[%clk 0:00:49.9]} 23... Nf6 {[%clk 0:01:29]} 24.
Ng3 {[%clk 0:00:44.4]} 24... Ne6 {[%clk 0:01:26.7]} 25. Nf5 {[%clk 0:00:42.4]}
25... Qg5 {[%clk 0:01:25.7]} 26. Kh2 {[%clk 0:00:31.3]} 26... Nf4 {[%clk
0:01:18.3]} 27. g3 {[%clk 0:00:27.6]} 27... N4d5 {[%clk 0:01:09.9]} 28. Nd2
{[%clk 0:00:16.9]} 28... Nb4 {[%clk 0:01:09.3]} 29. Qc3 {[%clk 0:00:09.2]} 29...
Nfd5 {[%clk 0:01:05.4]} 0-1

[Event "Early-Titled-Tuesday-Blitz-March-12-2024"]
[Site "Chess.com"]
[Date "2024.03.12"]
[Round "5"]
[White "Ginzburg_Yakov"]
[Black "Witik"]
[Result "0-1"]
[WhiteElo "2547"]
[BlackElo "2747"]
[TimeControl "180+1"]
[EndTime "8:54:15 PDT"]
[Termination "Witik won on time"]

1. d4 {[%clk 0:02:58.9]} 1... Nf6 {[%clk 0:03:00]} 2. g3 {[%clk 0:02:58.9]} 2...
d5 {[%clk 0:02:59.5]} 3. Bg2 {[%clk 0:02:58.8]} 3... g6 {[%clk 0:02:59.9]} 4.
Nf3 {[%clk 0:02:58.2]} 4... Bg7 {[%clk 0:03:00.4]} 5. O-O {[%clk 0:02:58.3]}
5... O-O {[%clk 0:03:01]} 6. c4 {[%clk 0:02:53.4]} 6... c6 {[%clk 0:03:01.2]} 7.
Ne5 {[%clk 0:02:44.6]} 7... Be6 {[%clk 0:02:49.1]} 8. c5 {[%clk 0:02:37.2]} 8...
b6 {[%clk 0:02:39.6]} 9. b4 {[%clk 0:02:14.2]} 9... Nfd7 {[%clk 0:02:33.3]} 10.
f4 {[%clk 0:01:34.1]} 10... bxc5 {[%clk 0:02:26.2]} 11. bxc5 {[%clk 0:01:33.3]}
11... Nxe5 {[%clk 0:02:06.2]} 12. fxe5 {[%clk 0:01:33.2]} 12... Nd7 {[%clk
0:02:06.2]} 13. e4 {[%clk 0:01:19]} 13... Nxe5 {[%clk 0:01:57.9]} 14. Na3 {[%clk
0:00:31.4]} 14... Nc4 {[%clk 0:01:23.8]} 15. Nxc4 {[%clk 0:00:30.4]} 15... dxc4
{[%clk 0:01:23.7]} 16. Be3 {[%clk 0:00:31.3]} 16... Qa5 {[%clk 0:01:19.2]} 17.
d5 {[%clk 0:00:30.8]} 17... Rad8 {[%clk 0:01:15.9]} 18. Rc1 {[%clk 0:00:29.1]}
18... c3 {[%clk 0:01:07.4]} 19. Bd4 {[%clk 0:00:23.7]} 19... cxd5 {[%clk
0:01:05.5]} 20. exd5 {[%clk 0:00:22.6]} 20... Bxd5 {[%clk 0:01:01.2]} 21. Bxg7
{[%clk 0:00:22.3]} 21... Bxg2 {[%clk 0:00:58.2]} 22. Bd4 {[%clk 0:00:09.6]}
22... Bxf1 {[%clk 0:00:53.9]} 0-1

[Event "Early-Titled-Tuesday-Blitz-March-12-2024"]
[Site "Chess.com"]
[Date "2024.03.12"]
[Round "5"]
[White "YegoryoCh"]
[Black "superchthonic"]
[Result "1-0"]
[WhiteElo "2503"]
[BlackElo "2691"]
[TimeControl "180+1"]
[EndTime "8:54:31 PDT"]
[Termination "YegoryoCh won by resignation"]

1. e4 {[%clk 0:03:00.9]} 1... Nf6 {[%clk 0:02:55.9]} 2. Nc3 {[%clk 0:02:58.7]}
2... d5 {[%clk 0:02:55.4]} 3. e5 {[%clk 0:02:58.6]} 3... Nfd7 {[%clk 0:02:55.6]}
4. d4 {[%clk 0:02:58.4]} 4... e6 {[%clk 0:02:55.9]} 5. f4 {[%clk 0:02:56.4]}
5... c5 {[%clk 0:02:56.3]} 6. Nf3 {[%clk 0:02:56.3]} 6... Nc6 {[%clk 0:02:57.1]}
7. Be3 {[%clk 0:02:54.7]} 7... a6 {[%clk 0:02:57.2]} 8. a3 {[%clk 0:02:54.9]}
8... b5 {[%clk 0:02:57]} 9. Bd3 {[%clk 0:02:55.1]} 9... Bb7 {[%clk 0:02:56.6]}
10. O-O {[%clk 0:02:54.2]} 10... g6 {[%clk 0:02:42.9]} 11. Kh1 {[%clk
0:02:53.3]} 11... Rc8 {[%clk 0:02:33.9]} 12. dxc5 {[%clk 0:02:53.4]} 12... Bxc5
{[%clk 0:02:28.7]} 13. Bxc5 {[%clk 0:02:53.3]} 13... Nxc5 {[%clk 0:02:29.1]} 14.
b4 {[%clk 0:02:51.1]} 14... Nxd3 {[%clk 0:02:22]} 15. Qxd3 {[%clk 0:02:46]}
15... Qc7 {[%clk 0:02:10.6]} 16. Ne2 {[%clk 0:02:44.9]} 16... Ne7 {[%clk
0:02:10]} 17. Ned4 {[%clk 0:02:43]} 17... Qc3 {[%clk 0:02:10]} 18. Qxc3 {[%clk
0:02:06.6]} 18... Rxc3 {[%clk 0:02:09.6]} 19. Nd2 {[%clk 0:02:03.7]} 19... Kd7
{[%clk 0:02:09.6]} 20. N2b3 {[%clk 0:02:03.9]} 20... Rhc8 {[%clk 0:02:09.3]} 21.
Nc5+ {[%clk 0:02:03.8]} 21... R8xc5 {[%clk 0:02:03.3]} 22. bxc5 {[%clk
0:02:04.7]} 22... Rxc5 {[%clk 0:02:02.9]} 23. a4 {[%clk 0:01:57.6]} 23... Rc4
{[%clk 0:02:01.9]} 24. Rfd1 {[%clk 0:01:57.2]} 24... bxa4 {[%clk 0:02:01.3]} 25.
Rab1 {[%clk 0:01:54.4]} 25... Kc7 {[%clk 0:01:59.9]} 26. g3 {[%clk 0:01:49]}
26... h5 {[%clk 0:01:58.5]} 27. Kg1 {[%clk 0:01:48.5]} 27... Bc6 {[%clk
0:01:58.5]} 28. Rd3 {[%clk 0:01:46.1]} 28... Bd7 {[%clk 0:01:51.5]} 29. Rd2
{[%clk 0:01:24.9]} 29... Nf5 {[%clk 0:01:50.9]} 30. Nxf5 {[%clk 0:01:24.6]}
30... gxf5 {[%clk 0:01:50.9]} 31. Kf2 {[%clk 0:01:25]} 31... Rc3 {[%clk
0:01:47.1]} 32. Ke2 {[%clk 0:01:16.6]} 32... Bb5+ {[%clk 0:01:47.2]} 33. Kf2
{[%clk 0:01:08.6]} 33... Kc6 {[%clk 0:01:47.4]} 34. Re1 {[%clk 0:01:01.3]} 34...
Kc5 {[%clk 0:01:35.6]} 35. Re3 {[%clk 0:01:01.4]} 35... d4 {[%clk 0:01:35.9]}
36. Rxc3+ {[%clk 0:00:55.4]} 36... dxc3 {[%clk 0:01:36.8]} 37. Rd1 {[%clk
0:00:54.6]} 37... a3 {[%clk 0:01:29]} 38. Ke3 {[%clk 0:00:55]} 38... a2 {[%clk
0:01:26.8]} 39. Re1 {[%clk 0:00:46.8]} 39... Kc4 {[%clk 0:01:22.5]} 40. Ra1
{[%clk 0:00:46.3]} 40... a5 {[%clk 0:01:22.4]} 41. Rxa2 {[%clk 0:00:46.6]} 41...
a4 {[%clk 0:01:23.1]} 42. Ra1 {[%clk 0:00:44.8]} 42... Kb4 {[%clk 0:01:23.5]}
43. Kd4 {[%clk 0:00:43]} 43... Bc4 {[%clk 0:01:21.4]} 44. Rxa4+ {[%clk 0:00:42]}
44... Kxa4 {[%clk 0:01:13.2]} 45. Kxc4 {[%clk 0:00:42.9]} 45... Ka5 {[%clk
0:01:12.9]} 46. Kxc3 {[%clk 0:00:41.1]} 46... Kb5 {[%clk 0:01:13.8]} 47. Kb3
{[%clk 0:00:40.1]} 47... Kc5 {[%clk 0:01:14.1]} 48. c4 {[%clk 0:00:40.1]} 1-0

[Event "Early-Titled-Tuesday-Blitz-March-12-2024"]
[Site "Chess.com"]
[Date "2024.03.12"]
[Round "5"]
[White "secrethawk1"]
[Black "Roedor"]
[Result "1-0"]
[WhiteElo "2466"]
[BlackElo "2274"]
[TimeControl "180+1"]
[EndTime "8:54:36 PDT"]
[Termination "secrethawk1 won by checkmate"]

1. d4 {[%clk 0:03:00.9]} 1... Nf6 {[%clk 0:02:57.2]} 2. Bf4 {[%clk 0:03:00.4]}
2... g6 {[%clk 0:02:56.9]} 3. e3 {[%clk 0:02:57.4]} 3... Bg7 {[%clk 0:02:57]} 4.
Nf3 {[%clk 0:02:53.9]} 4... O-O {[%clk 0:02:56]} 5. h3 {[%clk 0:02:54.3]} 5...
d6 {[%clk 0:02:55.6]} 6. Be2 {[%clk 0:02:50.6]} 6... b6 {[%clk 0:02:55.8]} 7.
O-O {[%clk 0:02:49.7]} 7... Bb7 {[%clk 0:02:56.2]} 8. Nbd2 {[%clk 0:02:35.6]}
8... Nbd7 {[%clk 0:02:54.4]} 9. c4 {[%clk 0:02:26.5]} 9... Ne4 {[%clk
0:02:52.7]} 10. Nxe4 {[%clk 0:02:24.7]} 10... Bxe4 {[%clk 0:02:53.6]} 11. Rc1
{[%clk 0:02:25.1]} 11... e5 {[%clk 0:02:50.4]} 12. Bh2 {[%clk 0:02:23.9]} 12...
Re8 {[%clk 0:02:45.4]} 13. dxe5 {[%clk 0:02:15.7]} 13... Nxe5 {[%clk 0:02:42.2]}
14. Nxe5 {[%clk 0:02:12.2]} 14... Bxe5 {[%clk 0:02:41.9]} 15. Bxe5 {[%clk
0:02:09.5]} 15... Rxe5 {[%clk 0:02:41.2]} 16. Qd4 {[%clk 0:02:08.6]} 16... Bb7
{[%clk 0:02:17.2]} 17. Rfd1 {[%clk 0:02:01.1]} 17... Qe7 {[%clk 0:02:13.9]} 18.
Bf1 {[%clk 0:01:56.2]} 18... Re4 {[%clk 0:02:07]} 19. Qd2 {[%clk 0:01:53.8]}
19... Re8 {[%clk 0:02:03.6]} 20. b4 {[%clk 0:01:49.1]} 20... Qg5 {[%clk
0:01:20]} 21. c5 {[%clk 0:01:45.3]} 21... bxc5 {[%clk 0:01:16.8]} 22. bxc5
{[%clk 0:01:46.2]} 22... dxc5 {[%clk 0:01:13.9]} 23. Qa5 {[%clk 0:01:43]} 23...
Bc8 {[%clk 0:00:07.7]} 24. Rxc5 {[%clk 0:01:34.4]} 24... R8e5 {[%clk 0:00:07.6]}
25. Rd8+ {[%clk 0:01:30.4]} 25... Kg7 {[%clk 0:00:07.3]} 26. Rxe5 {[%clk
0:01:21.7]} 26... Rxe5 {[%clk 0:00:08.2]} 27. Qxc7 {[%clk 0:01:20.7]} 27... Bxh3
{[%clk 0:00:07.4]} 28. f4 {[%clk 0:01:17.7]} 28... Qg3 {[%clk 0:00:06.3]} 29.
Qxe5+ {[%clk 0:01:15.8]} 29... f6 {[%clk 0:00:05.2]} 30. Qe7+ {[%clk 0:00:59.6]}
30... Kh6 {[%clk 0:00:05.4]} 31. Rh8 {[%clk 0:00:55.7]} 31... Kh5 {[%clk
0:00:02.3]} 32. Rxh7+ {[%clk 0:00:53.1]} 32... Kg4 {[%clk 0:00:03.2]} 33. Qe6+
{[%clk 0:00:51.8]} 33... f5 {[%clk 0:00:03.1]} 34. Qxg6# {[%clk 0:00:52.4]} 1-0